bitfinex-derivatives/quotes_SOLF0:USTF0_20260302
["timestamp","ask_amount","ask_price","bid_price","bid_amount"]
[1772477228852,32.28784348,87.541,87.502,10.284]
[1772477229258,32.28784348,87.541,87.47,8.9429342]
[1772477229451,8.9429342,87.59,87.502,10.284]
[1772477229452,32.28704602,87.555,87.502,10.284]
[1772477229858,32.28704602,87.555,87.47,8.9429342]
[1772477230062,32.31584384,87.545,87.47,8.9429342]
[1772477231455,32.31507229,87.569,87.49,8.9429342]
[1772477232958,32.32146025,87.562,87.49,8.9429342]
[1772477233152,32.32146025,87.562,87.47,43.62302622]
[1772477233352,8.9429342,87.59,87.47,8.9429342]
[1772477233353,32.32146025,87.559,87.47,8.9429342]
[1772477233554,8.9429342,87.56,87.46,53.9094195]
[1772477233555,32.32146025,87.531,87.46,53.9094195]
[1772477234253,10.281,87.526,87.469,10.287]
[1772477234458,32.27561911,87.525,87.46,53.9094195]
[1772477234954,32.27485159,87.499,87.391,14.10509202]
[1772477235159,32.27485159,87.499,87.39,8.9429342]
[1772477235456,8.9429342,87.5,87.39,14.08388927]
[1772477235457,32.27485159,87.491,87.39,14.08388927]
[1772477235951,32.2127308,87.478,87.39,8.9429342]
[1772477236154,32.2127308,87.459,87.37,8.9429342]
[1772477236554,32.21017699,87.453,87.381,10.298]
[1772477236755,32.21017699,87.453,87.37,8.9429342]
[1772477237161,32.21017699,87.445,87.37,8.9429342]
[1772477237557,32.21017699,87.445,87.35,14.08388927]
[1772477237757,8.9429342,87.46,87.35,14.08388927]
[1772477237758,32.81123967,87.438,87.38,10.298]
[1772477237958,32.81123967,87.438,87.37,8.9429342]
[1772477238462,32.81123967,87.438,87.379,10.298]
[1772477239258,32.81123967,87.438,87.37,14.0886768]
[1772477239459,32.81072144,87.46,87.37,14.0886768]
[1772477239965,32.81072144,87.46,87.39,8.9429342]
[1772477240163,32.64754363,87.48,87.41,8.9429342]
[1772477240657,32.64754363,87.477,87.419,10.293]
[1772477241265,32.64754363,87.477,87.41,8.9429342]
[1772477241653,32.61104971,87.475,87.41,8.9429342]
[1772477243366,32.61104971,87.475,87.42,10.293]
[1772477244056,32.6307224,87.471,87.37,8.9429342]
[1772477244262,32.6307224,87.449,87.35,8.9429342]
[1772477244866,8.9429342,87.45,87.35,8.9429342]
[1772477244867,32.63019433,87.435,87.35,8.9429342]
[1772477246468,32.62492077,87.431,87.371,10.299]
[1772477247570,32.6243931,87.429,87.362,10.3]
[1772477247771,8.9429342,87.47,87.328,86.2550712]
[1772477247772,32.47632304,87.409,87.328,86.2550712]
[1772477248072,32.47632304,87.409,87.32,8.9429342]
[1772477248073,32.47632304,87.38,87.319,10.305]
[1772477248271,32.47632304,87.38,87.28,8.9429342]
[1772477248770,32.47576587,87.373,87.3,8.9429342]
[1772477249369,32.47576587,87.373,87.322,10.305]
[1772477249572,32.47576587,87.373,87.28,8.9429342]
[1772477250476,10.3,87.363,87.31,10.306]
[1772477250675,32.54225929,87.362,87.28,8.9429342]
[1772477251271,32.54172784,87.38,87.3,8.9429342]
[1772477251875,32.53667261,87.378,87.32,8.9429342]
[1772477252078,32.53667261,87.419,87.32,8.9429342]
[1772477252683,32.53615091,87.389,87.32,8.9429342]
[1772477254175,32.53615091,87.389,87.336,10.303]
[1772477254377,32.53615091,87.389,87.3,8.9429342]
[1772477255285,32.55349032,87.367,87.3,8.9429342]
[1772477255480,32.55349032,87.399,87.32,8.9429342]
[1772477256185,32.55678856,87.387,87.32,8.9429342]
[1772477257180,10.298,87.385,87.33,10.304]
[1772477257381,32.55631147,87.384,87.32,8.9429342]
[1772477257785,32.51711242,87.419,87.32,8.9429342]
[1772477258082,32.51711242,87.404,87.34,8.9429342]
[1772477259791,32.51711242,87.404,87.359,10.3]
[1772477260584,32.51711242,87.404,87.367,10.3]
[1772477261388,32.51711242,87.404,87.34,8.9429342]
[1772477261693,32.51711242,87.404,87.32,8.9429342]
[1772477261992,32.77406736,87.387,87.331,10.304]
[1772477262392,32.77406736,87.387,87.32,14.09325767]
[1772477262792,32.77367915,87.406,87.34,8.9429342]
[1772477263586,32.77367915,87.406,87.366,10.3]
[1772477264390,32.80513111,87.425,87.36,8.9429342]
[1772477266097,32.80513111,87.425,87.387,10.297]
[1772477266297,32.80513111,87.425,87.36,8.9429342]
[1772477266298,32.65915903,87.443,87.36,8.9429342]
[1772477266505,32.65915903,87.443,87.38,8.9429342]
[1772477266705,32.6587537,87.462,87.38,8.9429342]
[1772477267011,32.6587537,87.462,87.4,8.9429342]
[1772477267399,32.6587537,87.462,87.424,10.293]
[1772477268204,32.62021714,87.48,87.4,8.9429342]
[1772477269003,32.62021714,87.48,87.42,8.9429342]
[1772477271315,14.23321714,87.48,87.421,3.23792584]
[1772477273611,14.23321714,87.48,87.376,20.597]
[1772477273612,14.23321714,87.48,87.403,3.39929057]
[1772477274713,25.15794596,87.478,87.384,3.89216454]
[1772477276312,25.15794596,87.458,87.405,10.295]
[1772477276512,25.15794596,87.458,87.401,3.97350825]
[1772477277813,25.15794596,87.458,87.414,10.294]
[1772477278013,25.15794596,87.458,87.401,3.97350825]
[1772477278414,25.15794596,87.458,87.418,10.294]
[1772477278618,25.15794596,87.458,87.401,3.97350825]
[1772477278918,25.15794596,87.458,87.416,10.294]
[1772477279911,25.15794596,87.458,87.423,10.293]
[1772477280614,25.15794596,87.499,87.431,3.97855396]
[1772477281212,25.15794596,87.499,87.451,10.29]
[1772477281617,25.15794596,87.499,87.458,10.289]
[1772477281809,25.15794596,87.499,87.431,3.97855396]
[1772477282013,25.15794596,87.539,87.451,4.00602962]
[1772477282214,25.15794596,87.516,87.458,10.289]
[1772477282817,25.15794596,87.511,87.45,10.29]
[1772477283015,25.15794596,87.511,87.432,4.02973355]
[1772477283217,25.15794596,87.493,87.439,10.291]
[1772477284315,25.15794596,87.491,87.439,10.291]
[1772477284520,25.15794596,87.491,87.431,4.08547534]
[1772477287122,25.15794596,87.491,87.448,10.29]
[1772477288727,25.15794596,87.491,87.456,10.289]
[1772477289426,25.15794596,87.539,87.461,3.55638371]
[1772477289626,25.15794596,87.539,87.48,8.96320644]
[1772477290032,25.15794596,87.539,87.481,3.57939259]
[1772477290323,25.15794596,87.539,87.464,3.57939259]
[1772477290525,25.15794596,87.528,87.464,3.57939259]
[1772477290927,25.15794596,87.528,87.471,3.60089482]
[1772477291124,8.96320644,87.56,87.471,3.60089482]
[1772477291125,25.15794596,87.548,87.471,3.60089482]
[1772477291729,25.15794596,87.548,87.498,10.284]
[1772477292831,25.15794596,87.548,87.507,10.283]
[1772477293224,25.15794596,87.548,87.471,3.43605223]
[1772477293429,25.15794596,87.546,87.471,3.43605223]
[1772477294330,25.15794596,87.544,87.471,3.43605223]
[1772477294726,25.15794596,87.544,87.508,10.283]
[1772477297430,20.542,87.611,87.511,3.13335175]
[1772477297431,24.51483876,87.561,87.511,3.13335175]
[1772477297630,8.96320644,87.6,87.511,3.13335175]
[1772477297631,24.51483876,87.599,87.511,3.13335175]
[1772477298229,24.51483876,87.583,87.529,10.28]
[1772477298429,24.51483876,87.583,87.511,3.13335175]
[1772477298630,24.51483876,87.583,87.493,2.94105801]
[1772477298824,24.51483876,87.563,87.49,8.96320644]
[1772477299232,24.51483876,87.563,87.474,2.94162872]
[1772477299429,24.51483876,87.54,87.474,2.94162872]
[1772477300929,24.51483876,87.54,87.499,10.284]
[1772477302327,24.51483876,87.54,87.491,10.285]
[1772477302838,24.51483876,87.579,87.506,10.283]
[1772477303732,24.51483876,87.568,87.511,2.95538968]
[1772477303932,24.51483876,87.587,87.53,8.96320644]
[1772477304233,24.51483876,87.587,87.53,19.24320644]
[1772477304732,24.51483876,87.587,87.511,2.95538968]
[1772477305131,24.51483876,87.576,87.511,2.95538968]
[1772477305329,24.51483876,87.619,87.511,2.95538968]
[1772477305532,24.51483876,87.619,87.51,14.10380355]
[1772477305533,10.277,87.555,87.505,10.283]
[1772477305836,24.51483876,87.554,87.493,2.98998495]
[1772477306737,24.51483876,87.554,87.46,10.47032577]
[1772477306738,24.51483876,87.554,87.476,3.07123133]
[1772477307041,24.51483876,87.554,87.49,8.96320644]
[1772477308038,24.51483876,87.554,87.491,3.04906849]
[1772477308232,159.684,87.662,87.491,3.04906849]
[1772477308233,8.96320644,87.6,87.491,3.04906849]
[1772477308434,8.96320644,87.6,87.49,8.96320644]
[1772477308435,8.96320644,87.6,87.511,20.54506849]
[1772477308836,10.274,87.586,87.511,20.54506849]
[1772477309234,10.275,87.579,87.511,20.54506849]
[1772477309434,8.96320644,87.6,87.511,20.54506849]
[1772477309641,8.96320644,87.62,87.511,20.54506849]
[1772477310143,10.271,87.608,87.558,10.277]
[1772477310338,24.51483876,87.607,87.531,20.53603703]
[1772477311847,24.51483876,87.607,87.553,10.278]
[1772477312739,24.51483876,87.604,87.553,10.278]
[1772477313140,24.51483876,87.604,87.545,10.279]
[1772477313441,8.96320644,87.62,87.531,20.53603703]
[1772477313442,24.51483876,87.603,87.531,20.53603703]
[1772477315243,24.51483876,87.603,87.552,10.278]
[1772477315442,24.51483876,87.634,87.551,21.10023127]
[1772477316038,36.57561435,87.659,87.581,10.274]
[1772477316039,24.51483876,87.629,87.581,10.274]
[1772477316237,24.51483876,87.629,87.551,21.10023127]
[1772477316444,24.51483876,87.629,87.571,21.17703636]
[1772477316641,24.51483876,87.629,87.598,10.272]
[1772477317046,24.51483876,87.629,87.571,21.17703636]
[1772477318340,24.51483876,87.629,87.589,10.273]
[1772477318743,24.51483876,87.629,87.571,21.17703636]
[1772477320455,24.51483876,87.629,87.596,10.272]
[1772477320960,24.51483876,87.629,87.587,10.274]
[1772477321860,0.00083876,87.653,87.591,21.18182968]
[1772477322062,36.57561435,87.659,87.591,21.18182968]
[1772477322854,8.96320644,87.7,87.591,21.18182968]
[1772477323060,10.264,87.668,87.591,21.18182968]
[1772477323461,8.96320644,87.7,87.591,21.18182968]
[1772477323660,8.96320644,87.7,87.611,25.37269773]
[1772477323859,24.51483876,87.687,87.611,25.37269773]
[1772477324256,24.51483876,87.719,87.631,25.37269773]
[1772477324555,24.51483876,87.711,87.654,10.266]
[1772477324761,24.51483876,87.711,87.651,25.37269773]
[1772477324958,24.51483876,87.739,87.651,25.37269773]
[1772477325263,24.51483876,87.739,87.67,25.37269773]
[1772477325661,24.51483876,87.737,87.67,25.37269773]
[1772477326667,24.51483876,87.737,87.681,25.37269773]
[1772477326957,8.96320644,87.79,87.691,25.37269773]
[1772477327156,8.96320644,87.77,87.691,25.37269773]
[1772477327554,10.254,87.759,87.691,35.63369773]
[1772477327759,8.96320644,87.77,87.671,26.02118497]
[1772477328154,10.254,87.752,87.688,10.262]
[1772477328356,8.96320644,87.77,87.671,26.02118497]
[1772477328959,24.93829671,87.749,87.688,10.262]
[1772477329159,24.93829671,87.749,87.671,26.02118497]
[1772477329566,24.93829671,87.748,87.686,10.262]
[1772477329770,24.93829671,87.748,87.686,26.02118497]
[1772477332271,24.93829671,87.748,87.67,8.96320644]
[1772477333271,24.93829671,87.748,87.67,34.98439141]
[1772477333768,24.93829671,87.729,87.654,26.02118497]
[1772477334362,24.93829671,87.729,87.671,26.02118497]
[1772477334570,24.93829671,87.769,87.671,26.02118497]
[1772477335171,8.96320644,87.77,87.673,26.02118497]
[1772477335172,24.93829671,87.737,87.673,26.02118497]
[1772477335762,8.96320644,87.77,87.673,26.02118497]
[1772477335763,24.93829671,87.735,87.674,10.263]
[1772477336369,24.93829671,87.731,87.673,26.02118497]
[1772477336575,24.93829671,87.731,87.665,10.264]
[1772477336772,24.93829671,87.72,87.665,10.264]
[1772477337863,24.93829671,87.72,87.656,26.02118497]
[1772477338268,24.93829671,87.74,87.656,26.02118497]
[1772477338469,24.93829671,87.738,87.675,10.263]
[1772477339469,24.93829671,87.736,87.666,10.264]
[1772477339972,24.93829671,87.722,87.666,10.264]
[1772477340474,24.93829671,87.722,87.647,36.28818497]
[1772477340776,24.93829671,87.709,87.647,36.28818497]
[1772477341076,24.93829671,87.709,87.655,10.266]
[1772477342364,8.91723933,87.73,87.655,10.266]
[1772477342365,24.93829671,87.707,87.655,10.266]
[1772477342774,24.93829671,87.705,87.647,26.02118497]
[1772477343370,24.93829671,87.703,87.647,36.28818497]
[1772477343576,24.93829671,87.703,87.64,484.71066688]
[1772477343872,10.263,87.681,87.634,10.268]
[1772477344071,24.93829671,87.684,87.594,26.02118497]
[1772477344468,24.93829671,87.665,87.613,10.271]
[1772477344876,24.93829671,87.665,87.594,26.02118497]
[1772477345673,24.93829671,87.665,87.607,26.02118497]
[1772477345879,24.93829671,87.661,87.607,26.02118497]
[1772477346078,24.93829671,87.709,87.625,10.269]
[1772477346280,24.93829671,87.709,87.626,26.02118497]
[1772477347874,24.93829671,87.709,87.61,8.91723933]
[1772477347875,24.93829671,87.681,87.61,8.91723933]
[1772477348073,24.93829671,87.681,87.607,26.02118497]
[1772477348475,10.264,87.668,87.611,26.02118497]
[1772477348674,24.93829671,87.681,87.611,26.02118497]
[1772477349375,10.265,87.66,87.615,10.27]
[1772477350581,10.266,87.652,87.611,26.02118497]
[1772477350774,24.93829671,87.665,87.611,26.02118497]
[1772477351477,24.93829671,87.665,87.62,10.27]
[1772477351875,10.262,87.687,87.635,10.268]
[1772477352081,24.93829671,87.689,87.635,26.02118497]
[1772477352977,24.93829671,87.689,87.617,26.02118497]
[1772477353180,24.93829671,87.689,87.597,26.02118497]
[1772477354275,24.93829671,87.689,87.611,26.02118497]
[1772477354680,24.93829671,87.689,87.635,26.02118497]
[1772477355385,24.93829671,87.706,87.644,26.02118497]
[1772477356181,10.259,87.717,87.665,10.264]
[1772477356379,24.7958544,87.725,87.651,25.79562394]
[1772477357582,10.259,87.709,87.651,25.79562394]
[1772477357782,24.7958544,87.725,87.651,25.79562394]
[1772477358177,10.26,87.703,87.651,25.79562394]
[1772477358376,25.43930743,87.708,87.651,25.79562394]
[1772477360280,35.69830743,87.708,87.652,10.266]
[1772477360974,25.43930743,87.708,87.659,10.265]
[1772477361374,25.43930743,87.708,87.651,25.79562394]
[1772477361777,25.43930743,87.708,87.658,10.265]
[1772477361978,25.43930743,87.708,87.631,25.72751517]
[1772477363186,10.26,87.707,87.656,10.265]
[1772477363580,25.43930743,87.706,87.646,25.72751517]
[1772477363881,25.43930743,87.697,87.615,25.72751517]
[1772477364080,25.43930743,87.697,87.622,25.72751517]
[1772477364784,25.43930743,87.686,87.641,10.267]
[1772477366384,25.43930743,87.675,87.624,10.269]
[1772477366579,25.43930743,87.675,87.611,25.72751517]
[1772477366779,25.43930743,87.675,87.612,10.31857657]
[1772477366985,25.43930743,87.675,87.613,25.72751517]
[1772477367385,25.43930743,87.675,87.636,10.268]
[1772477367585,25.43930743,87.675,87.613,25.72751517]
[1772477368583,25.43930743,87.675,87.628,10.269]
[1772477369886,25.43930743,87.673,87.613,25.72751517]
[1772477370589,25.43930743,87.673,87.627,10.269]
[1772477371389,25.43930743,87.673,87.634,10.268]
[1772477371891,25.43930743,87.673,87.627,10.269]
[1772477372386,25.43930743,87.673,87.613,25.72751517]
[1772477372587,10.263,87.681,87.614,25.72751517]
[1772477372790,10.263,87.681,87.615,25.72751517]
[1772477373184,35.70230743,87.681,87.634,10.268]
[1772477373383,25.43930743,87.68,87.634,10.268]
[1772477373780,25.43930743,87.678,87.606,10.31857657]
[1772477373984,25.43930743,87.678,87.6,25.72751517]
[1772477374188,25.43930743,87.678,87.611,25.72751517]
[1772477374390,25.43930743,87.678,87.631,10.268]
[1772477375283,25.43930743,87.675,87.631,10.268]
[1772477375790,25.43930743,87.675,87.609,25.72751517]
[1772477376090,25.43930743,87.675,87.611,25.72751517]
[1772477376291,25.43930743,87.674,87.627,10.269]
[1772477377585,10.264,87.672,87.627,10.269]
[1772477377786,25.43930743,87.671,87.62,10.27]
[1772477378493,25.43930743,87.669,87.62,10.27]
[1772477379092,10.265,87.661,87.62,10.27]
[1772477379291,25.43930743,87.66,87.612,10.271]
[1772477380293,10.265,87.659,87.612,10.271]
[1772477380897,25.43930743,87.66,87.612,10.271]
[1772477381293,25.43930743,87.659,87.612,10.271]
[1772477382396,25.43930743,87.657,87.612,10.271]
[1772477383290,10.266,87.656,87.612,10.271]
[1772477383496,25.43930743,87.656,87.601,10.31857657]
[1772477383895,25.43930743,87.656,87.597,10.31857657]
[1772477384098,25.43930743,87.656,87.604,10.31857657]
[1772477384396,10.266,87.649,87.599,10.31857657]
[1772477384591,35.70530743,87.649,87.604,10.31857657]
[1772477384890,25.43930743,87.649,87.595,36.04609174]
[1772477385095,25.43930743,87.649,87.57,8.92682337]
[1772477385096,25.43930743,87.649,87.59,10.31857657]
[1772477385289,25.43930743,87.649,87.582,10.31857657]
[1772477385793,25.43930743,87.649,87.588,10.31857657]
[1772477386197,25.43930743,87.634,87.587,10.31857657]
[1772477387397,25.43930743,87.634,87.588,10.274]
[1772477387702,26.37055093,87.659,87.599,10.31857657]
[1772477388597,26.37055093,87.659,87.595,26.90027218]
[1772477388598,26.37055093,87.659,87.6,10.31857657]
[1772477388800,26.37055093,87.659,87.607,26.90027218]
[1772477388990,26.37055093,87.659,87.616,10.31857657]
[1772477389191,26.37055093,87.659,87.615,10.31857657]
[1772477389596,26.37055093,87.659,87.618,10.27]
[1772477393708,26.37055093,87.659,87.616,37.21884875]
[1772477394206,26.37055093,87.659,87.622,10.269]
[1772477394806,26.37055093,87.659,87.615,10.31857657]
[1772477395002,26.37055093,87.659,87.605,10.31857657]
[1772477396202,26.37055093,87.658,87.612,10.271]
[1772477397206,26.37055093,87.655,87.612,10.271]
[1772477398907,26.37055093,87.698,87.616,26.90027218]
[1772477399107,26.37055093,87.698,87.622,26.90027218]
[1772477399808,10.264,87.672,87.622,26.90027218]
[1772477400204,26.37055093,87.698,87.63,8.92682337]
[1772477400399,26.37055093,87.714,87.656,26.90027218]
[1772477400604,26.37055093,87.749,87.671,26.90027218]
[1772477400802,26.37055093,87.749,87.67,19.24539994]
[1772477400803,26.37055093,87.749,87.693,26.90027218]
[1772477402103,26.37055093,87.766,87.693,26.90027218]
[1772477402301,26.37055093,87.766,87.699,26.90027218]
[1772477402503,26.37055093,87.759,87.681,26.90027218]
[1772477402706,26.37055093,87.759,87.684,26.90027218]
[1772477403108,26.37055093,87.754,87.691,26.90027218]
[1772477403601,26.37055093,87.754,87.716,10.259]
[1772477403802,26.37055093,87.754,87.706,26.90027218]
[1772477404308,26.37055093,87.77,87.706,26.90027218]
[1772477404510,26.37055093,87.77,87.696,10.31857657]
[1772477404511,26.37055093,87.788,87.711,26.90027218]
[1772477404810,26.37055093,87.788,87.734,10.256]
[1772477405404,26.37055093,87.785,87.723,10.258]
[1772477405810,26.37055093,87.785,87.716,26.90027218]
[1772477406908,8.91174107,87.8,87.71,8.91174107]
[1772477406909,26.37055093,87.783,87.722,26.90027218]
[1772477407908,26.37055093,87.781,87.724,10.258]
[1772477408510,26.37055093,87.78,87.723,10.258]
[1772477409404,26.37055093,87.78,87.731,10.257]
[1772477409707,26.37055093,87.78,87.731,37.15727218]
[1772477409910,26.37055093,87.78,87.731,26.90027218]
[1772477410211,26.37055093,87.78,87.714,26.90027218]
[1772477410611,26.37055093,87.766,87.714,26.90027218]
[1772477411208,26.37055093,87.789,87.727,10.257]
[1772477411909,26.37055093,87.785,87.719,26.90027218]
[1772477412514,26.37055093,87.778,87.722,10.258]
[1772477412812,26.37055093,87.778,87.719,26.90027218]
[1772477413204,10.252,87.772,87.721,10.258]
[1772477413405,26.37055093,87.778,87.721,10.258]
[1772477413604,26.37055093,87.778,87.722,26.90027218]
[1772477413812,26.37055093,87.833,87.722,26.90027218]
[1772477414013,26.37055093,87.829,87.751,26.90027218]
[1772477414530,26.37055093,87.817,87.76,10.253]
[1772477414715,26.37055093,87.817,87.751,26.90027218]
[1772477414911,182.38,87.875,87.771,26.90027218]
[1772477415107,182.38,87.875,87.791,26.90027218]
[1772477415313,8.91174107,87.88,87.791,26.90027218]
[1772477415513,8.91174107,87.88,87.79,8.91174107]
[1772477415714,8.91174107,87.86,87.774,26.90027218]
[1772477415914,10.245,87.833,87.776,10.251]
[1772477416617,10.246,87.824,87.77,8.91174107]
[1772477416814,8.91174107,87.86,87.758,27.52571706]
[1772477417017,25.45510439,87.859,87.758,27.52571706]
[1772477417220,25.45510439,87.814,87.758,27.52571706]
[1772477417620,10.247,87.813,87.759,10.254]
[1772477417820,25.45510439,87.814,87.759,10.254]
[1772477418221,25.14994268,87.812,87.75,8.91174107]
[1772477418426,25.14994268,87.812,87.74,25.46123091]
[1772477418615,25.14994268,87.812,87.731,25.46123091]
[1772477419014,10.251,87.78,87.731,25.46123091]
[1772477419222,25.14994268,87.788,87.731,25.46123091]
[1772477419526,10.25,87.787,87.732,10.257]
[1772477419720,25.14994268,87.786,87.731,25.46123091]
[1772477420026,25.14994268,87.786,87.711,25.46123091]
[1772477420325,10.252,87.776,87.721,10.258]
[1772477421220,25.14994268,87.786,87.713,25.46123091]
[1772477421626,25.14994268,87.786,87.691,25.46123091]
[1772477422218,10.253,87.765,87.707,25.46123091]
[1772477422419,25.14994268,87.77,87.711,25.46123091]
[1772477422620,25.14994268,87.799,87.711,25.46123091]
[1772477422818,25.14994268,87.799,87.71,8.91174107]
[1772477422819,10.251,87.782,87.724,35.71923091]
[1772477423226,25.14994268,87.784,87.724,25.46123091]
[1772477423523,25.14994268,87.784,87.664,34.3]
[1772477423524,25.14994268,87.762,87.656,10.43293503]
[1772477423826,478.06,87.844,87.635,25.46123091]
[1772477423827,25.14994268,87.729,87.635,25.46123091]
[1772477424016,25.14994268,87.702,87.637,10.268]
[1772477424222,25.14994268,87.702,87.635,25.46123091]
[1772477424825,8.91174107,87.71,87.61,8.91174107]
[1772477424826,25.14994268,87.709,87.611,25.46123091]
[1772477425028,25.14994268,87.709,87.631,25.46123091]
[1772477426225,25.14994268,87.709,87.633,25.46123091]
[1772477427426,25.14994268,87.696,87.636,10.268]
[1772477427932,25.14994268,87.694,87.626,10.269]
[1772477428628,8.91174107,87.71,87.614,25.46123091]
[1772477428629,25.14994268,87.684,87.614,25.46123091]
[1772477429418,25.14994268,87.719,87.631,25.46123091]
[1772477429620,8.91174107,87.72,87.631,25.46123091]
[1772477429621,10.262,87.689,87.631,25.46123091]
[1772477430027,25.14994268,87.701,87.631,25.46123091]
[1772477430326,8.91174107,87.72,87.633,10.268]
[1772477430327,25.14994268,87.698,87.633,10.268]
[1772477430823,25.14994268,87.698,87.631,25.46123091]
[1772477430824,25.14994268,87.686,87.631,25.46123091]
[1772477432721,25.14994268,87.686,87.636,25.46123091]
[1772477432917,10.261,87.699,87.636,25.46123091]
[1772477433318,25.14994268,87.704,87.641,25.46123091]
[1772477434030,10.26,87.703,87.647,25.46123091]
[1772477434230,25.14994268,87.724,87.647,25.46123091]
[1772477434930,35.40794268,87.724,87.661,25.46123091]
[1772477435334,35.40794268,87.724,87.664,25.46123091]
[1772477435522,25.14994268,87.76,87.681,25.46123091]
[1772477435723,25.14994268,87.799,87.701,25.46123091]
[1772477435927,25.14994268,87.799,87.707,25.46123091]
[1772477436923,25.14994268,87.761,87.707,25.46123091]
[1772477438230,25.14994268,87.761,87.709,10.259]
[1772477438730,25.14994268,87.761,87.707,25.46123091]
[1772477438929,25.14994268,87.759,87.707,25.46123091]
[1772477440337,25.14994268,87.823,87.74,8.91174107]
[1772477440536,25.14994268,87.82,87.753,10.254]
[1772477441330,25.14994268,87.82,87.745,25.46123091]
[1772477441727,25.14994268,87.82,87.72,8.91174107]
[1772477441728,25.14994268,87.839,87.761,25.46123091]
[1772477442035,35.39394268,87.839,87.775,25.46123091]
[1772477442632,10.245,87.83,87.775,25.46123091]
[1772477442835,25.14994268,87.829,87.76,34.37297198]
[1772477443139,25.14994268,87.829,87.76,25.46123091]
[1772477443942,8.91174107,87.84,87.741,25.46123091]
[1772477443943,25.14994268,87.815,87.741,25.46123091]
[1772477444637,10.247,87.813,87.754,10.254]
[1772477444837,25.14994268,87.812,87.754,10.254]
[1772477445234,10.248,87.811,87.745,25.46123091]
[1772477446139,8.91174107,87.84,87.74,8.91174107]
[1772477446140,25.14994268,87.81,87.749,25.46123091]
[1772477446738,25.14994268,87.808,87.73,25.46123091]
[1772477446932,25.14994268,87.808,87.71,25.46123091]
[1772477447139,25.14994268,87.808,87.711,25.46123091]
[1772477447332,10.251,87.781,87.722,27.58895293]
[1772477447539,25.20922759,87.792,87.722,27.58895293]
[1772477447935,25.20922759,87.792,87.724,27.58895293]
[1772477448447,25.20922759,87.771,87.71,8.91174107]
[1772477448647,25.20922759,87.771,87.695,10.261]
[1772477449036,10.255,87.747,87.69,27.58895293]
[1772477449442,25.20922759,87.753,87.691,27.58895293]
[1772477449645,10.254,87.752,87.692,27.58895293]
[1772477450744,10.253,87.761,87.702,27.58895293]
[1772477451336,10.255,87.75,87.702,27.58895293]
[1772477451747,25.20922759,87.771,87.702,27.58895293]
[1772477453342,10.254,87.76,87.704,27.58895293]
[1772477453543,25.20922759,87.771,87.704,27.58895293]
[1772477453744,25.20922759,87.755,87.686,27.58895293]
[1772477453942,25.20922759,87.798,87.701,27.58895293]
[1772477454140,25.20922759,87.798,87.721,27.58895293]
[1772477454540,10.251,87.782,87.727,27.58895293]
[1772477454941,25.20922759,87.798,87.7,8.91174107]
[1772477455246,25.16489352,87.771,87.701,27.58895293]
[1772477456039,10.254,87.757,87.702,27.58895293]
[1772477457540,10.254,87.757,87.704,27.58895293]
[1772477458148,10.254,87.757,87.706,27.58895293]
[1772477459039,10.253,87.767,87.713,10.259]
[1772477459244,25.16489352,87.771,87.706,27.58895293]
[1772477460344,10.254,87.756,87.706,27.58895293]
[1772477460551,25.16489352,87.771,87.706,27.58895293]
[1772477460751,24.89452358,87.799,87.706,27.58895293]
[1772477461247,24.89452358,87.799,87.723,27.58895293]
[1772477461749,24.89452358,87.799,87.706,27.58895293]
[1772477461945,8.91174107,87.76,87.69,27.58895293]
[1772477462145,25.20922759,87.759,87.671,27.58895293]
[1772477462552,25.20922759,87.739,87.671,27.58895293]
[1772477462744,25.20922759,87.739,87.651,27.58895293]
[1772477463053,10.257,87.729,87.676,10.263]
[1772477463650,10.258,87.722,87.676,10.263]
[1772477464850,25.20922759,87.739,87.655,27.58895293]
[1772477466358,10.258,87.722,87.673,10.264]
[1772477467055,10.259,87.714,87.664,10.265]
[1772477467252,24.62736863,87.723,87.655,27.58895293]
[1772477467853,10.26,87.707,87.655,27.58895293]
[1772477468556,10.26,87.707,87.655,37.85495293]
[1772477468754,10.259,87.715,87.655,27.58895293]
[1772477469058,24.62736863,87.723,87.655,27.58895293]
[1772477469655,24.62736863,87.723,87.631,27.58895293]
[1772477469863,24.36902356,87.709,87.614,27.58895293]
[1772477471658,24.36902356,87.709,87.643,27.58895293]
[1772477473157,10.261,87.694,87.645,10.267]
[1772477473658,24.36902356,87.709,87.643,27.58895293]
[1772477473861,24.36902356,87.709,87.624,27.58895293]
[1772477474163,23.82162791,87.689,87.624,27.58895293]
[1772477474763,10.264,87.67,87.624,27.58895293]